bitfinex-derivatives/quotes_SOLF0:USTF0_20250428
["timestamp","ask_amount","ask_price","bid_price","bid_amount"]
[1745831466673,17.88457567,151.39,151.36,6.6046]
[1745831467679,6.6037,151.38,151.35,6.6049]
[1745831468282,21.83057567,151.39,151.36,6.6046]
[1745831468985,23.26,151.4,151.31,36.51557567]
[1745831469281,23.26,151.4,151.34,11.28107567]
[1745831469483,6.6023,151.42,151.39,6.6033]
[1745831469878,38.48707567,151.43,151.35,23.26]
[1745831470077,33.8078,151.43,151.4,6.6025]
[1745831470376,23.26,151.43,151.36,11.28107567]
[1745831470579,18.13169567,151.45,151.41,6.602]
[1745831470884,18.13169567,151.45,151.36,15.36597567]
[1745831471180,0.24972,151.45,151.42,6.6016]
[1745831471491,0.24972,151.45,151.38,11.28107567]
[1745831471783,0.24972,151.45,151.4,11.28107567]
[1745831471983,0.24972,151.45,151.42,11.28107567]
[1745831472182,0.24972,151.45,151.44,17.88217567]
[1745831473284,29.2658,151.54,151.44,11.28107567]
[1745831473582,6.598,151.52,151.44,11.28107567]
[1745831473885,11.28107567,151.53,151.44,11.28107567]
[1745831474075,11.28107567,151.51,151.43,23.26]
[1745831474280,6.5988,151.5,151.43,23.26]
[1745831474588,11.28107567,151.51,151.45,6.6004]
[1745831475085,11.28107567,151.51,151.44,6.601]
[1745831475286,23.26,151.5,151.43,23.26]
[1745831475489,6.5994,151.48,151.43,23.26]
[1745831475686,6.5994,151.48,151.43,29.8612]
[1745831475887,6.5994,151.48,151.43,23.26]
[1745831476184,11.28107567,151.49,151.43,23.26]
[1745831476487,6.5999,151.47,151.4,34.54107567]
[1745831476688,6.5999,151.47,151.43,6.6011]
[1745831477186,6.6002,151.46,151.4,34.54107567]
[1745831477382,11.28107567,151.47,151.41,6.6023]
[1745831477578,6.6007,151.45,151.41,6.6023]
[1745831478387,6.6004,151.46,151.42,6.6019]
[1745831478587,11.28107567,151.47,151.42,6.6019]
[1745831478985,17.88127567,151.47,151.43,6.6015]
[1745831479185,1.8843,151.48,151.4,23.26]
[1745831479186,1.8843,151.48,151.4,34.54107567]
[1745831479387,6.6001,151.47,151.4,34.54107567]
[1745831479590,6.6001,151.47,151.42,6.6019]
[1745831479884,11.28107567,151.47,151.4,23.26]
[1745831480090,6.6012,151.44,151.4,23.26]
[1745831480286,11.28107567,151.45,151.37,23.26]
[1745831480486,11.28107567,151.43,151.37,23.26]
[1745831480791,11.28107567,151.41,151.34,23.26]
[1745831481091,6.6037,151.39,151.34,23.26]
[1745831481392,11.28107567,151.41,151.36,6.6043]
[1745831481589,11.28107567,151.41,151.34,23.26]
[1745831482486,11.28107567,151.41,151.38,6.6036]
[1745831482990,29.8623,151.42,151.38,6.6036]
[1745831483192,29.8623,151.42,151.39,6.6032]
[1745831484391,29.8623,151.42,151.4,6.6028]
[1745831484592,23.26,151.42,151.34,23.26]
[1745831484791,23.26,151.42,151.35,3.9305]
[1745831485092,29.8623,151.42,151.35,3.9305]
[1745831485390,23.26,151.42,151.35,3.9305]
[1745831485692,6.6026,151.41,151.38,6.6036]
[1745831486190,6.6031,151.4,151.37,6.604]
[1745831487593,6.6025,151.41,151.38,6.6037]
[1745831487798,23.26,151.42,151.34,23.26]
[1745831488593,29.8621,151.42,151.34,23.26]
[1745831490891,23.26,151.42,151.39,6.6031]
[1745831491390,23.26,151.42,151.38,6.6035]
[1745831491590,23.26,151.42,151.34,23.26]
[1745831491894,6.6031,151.4,151.36,6.6044]
[1745831492191,6.6031,151.4,151.34,23.26]
[1745831492597,23.26,151.42,151.34,23.26]
[1745831492995,6.6031,151.4,151.36,6.6042]
[1745831493193,6.6031,151.4,151.34,23.26]
[1745831493597,6.6031,151.4,151.36,6.6042]
[1745831493893,6.6031,151.4,151.34,23.26]
[1745831494594,6.6026,151.41,151.37,6.6039]
[1745831495493,6.6026,151.41,151.38,6.6036]
[1745831497694,6.6031,151.4,151.38,6.6036]
[1745831497894,18.14547595,151.41,151.34,23.26]
[1745831498097,18.14547595,151.38,151.31,23.72]
[1745831498291,6.6047,151.36,151.33,6.6059]
[1745831498692,6.6047,151.36,151.31,23.72]
[1745831499195,41.86547595,151.38,151.28,23.72]
[1745831499489,41.86547595,151.38,151.34,6.6052]
[1745831499693,6.6048,151.36,151.34,6.6052]
[1745831499895,6.6048,151.36,151.28,23.72]
[1745831500096,6.6048,151.36,151.33,6.6056]
[1745831500489,6.6048,151.36,151.28,23.72]
[1745831500692,6.6048,151.36,151.34,6.6053]
[1745831500892,6.6044,151.37,151.34,6.6053]
[1745831501897,6.6048,151.36,151.34,6.6053]
[1745831502694,18.14547595,151.35,151.27,1.9399]
[1745831502896,23.72,151.34,151.25,25.6328]
[1745831503197,6.6077,151.29,151.25,25.6328]
[1745831503396,25.6143,151.34,151.25,25.6328]
[1745831503596,11.35741145,151.32,151.25,25.6328]
[1745831503799,6.6075,151.3,151.26,6.6087]
[1745831504292,11.35741145,151.32,151.26,6.6087]
[1745831504499,11.35741145,151.32,151.25,25.6328]
[1745831504500,11.35741145,151.3,151.25,23.72]
[1745831504793,11.35741145,151.28,151.22,23.74]
[1745831505200,6.6091,151.26,151.23,6.61]
[1745831505401,6.6091,151.26,151.22,23.74]
[1745831505900,6.6091,151.26,151.22,30.3505]
[1745831506301,6.6091,151.26,151.23,6.6102]
[1745831506502,6.6084,151.28,151.22,23.74]
[1745831506799,6.6084,151.28,151.24,6.6096]
[1745831507000,23.74,151.3,151.22,23.74]
[1745831507505,23.74,151.3,151.24,6.6097]
[1745831507799,23.74,151.3,151.22,23.74]
[1745831508197,30.3476,151.3,151.22,23.74]
[1745831508602,23.74,151.3,151.22,23.74]
[1745831508796,6.6077,151.29,151.22,23.74]
[1745831509102,6.6077,151.29,151.25,6.6091]
[1745831509301,6.6082,151.28,151.25,6.6091]
[1745831511503,6.6078,151.29,151.25,6.6091]
[1745831511902,6.6078,151.29,151.26,6.609]
[1745831512102,23.74,151.33,151.26,23.74]
[1745831512603,6.6068,151.31,151.26,23.74]
[1745831512803,23.74,151.33,151.26,23.74]
[1745831513403,23.74,151.33,151.27,6.6081]
[1745831513604,6.6071,151.31,151.27,6.6081]
[1745831514004,23.74,151.33,151.27,6.6081]
[1745831514802,6.6071,151.31,151.28,6.608]
[1745831515306,6.6072,151.3,151.28,6.608]
[1745831516508,6.608,151.29,151.26,23.74]
[1745831516707,23.74,151.33,151.23,23.8]
[1745831517307,23.74,151.33,151.26,6.6089]
[1745831517704,23.74,151.33,151.23,23.8]
[1745831518008,6.6084,151.28,151.25,6.6092]
[1745831519008,6.6084,151.28,151.26,6.6089]
[1745831519911,6.6084,151.28,151.25,6.6092]
[1745831520614,23.74,151.33,151.26,6.6089]
[1745831521210,6.6079,151.29,151.26,6.6089]
[1745831522110,6.6079,151.29,151.27,6.6085]
[1745831522410,6.6079,151.29,151.23,23.8]
[1745831522709,6.6079,151.29,151.26,6.6087]
[1745831523011,1.8943,151.34,151.23,23.8]
[1745831523207,23.8,151.34,151.23,23.8]
[1745831523409,23.8,151.34,151.29,6.6074]
[1745831523604,6.6066,151.32,151.29,6.6074]
[1745831523810,23.8,151.34,151.27,23.8]
[1745831524010,23.8,151.37,151.31,6.6065]
[1745831524310,23.8,151.37,151.28,5.9793]
[1745831524510,23.8,151.37,151.3,6.607]
[1745831524804,6.6061,151.33,151.3,6.607]
[1745831525108,6.6061,151.33,151.28,5.9793]
[1745831526112,23.8,151.37,151.28,5.9793]
[1745831526314,27.769,151.37,151.29,6.6074]
[1745831526513,27.769,151.37,151.28,5.9793]
[1745831526814,18.17915302,151.36,151.27,23.8]
[1745831527313,6.6067,151.32,151.27,23.8]
[1745831527514,6.6067,151.32,151.29,6.6075]
[1745831531014,18.17915302,151.33,151.27,23.8]
[1745831531611,18.17915302,151.33,151.28,6.608]
[1745831532519,6.6073,151.3,151.28,6.608]
[1745831534018,6.6073,151.3,151.27,30.4083]
[1745831534721,6.6073,151.3,151.28,6.608]
[1745831536219,6.6079,151.29,151.27,23.8]
[1745831537321,6.6079,151.29,151.27,30.4085]
[1745831537510,6.6079,151.29,151.24,1.9258]
[1745831537819,6.6081,151.28,151.24,25.7258]
[1745831538118,6.6081,151.28,151.25,6.6093]
[1745831538516,6.6081,151.28,151.24,25.7258]
[1745831538717,6.6087,151.27,151.24,23.8]
[1745831539020,11.35586255,151.29,151.24,23.8]
[1745831539523,11.35586255,151.31,151.24,23.8]
[1745831539724,6.6081,151.28,151.24,23.8]
[1745831540318,11.35586255,151.31,151.24,23.8]
[1745831540519,2.0059,151.32,151.24,35.15586255]
[1745831541023,11.35586255,151.31,151.24,23.8]
[1745831541620,2.0059,151.32,151.24,23.8]
[1745831542119,6.6074,151.3,151.27,6.6083]
[1745831542820,6.6074,151.3,151.28,6.6081]
[1745831544121,6.607,151.31,151.29,6.6073]
[1745831544322,23.8,151.33,151.24,41.97262052]
[1745831544821,6.6061,151.33,151.24,41.97262052]
[1745831545325,6.6061,151.33,151.29,6.6074]
[1745831545621,6.6065,151.32,151.29,6.6074]
[1745831547124,6.6061,151.33,151.3,6.6071]
[1745831548220,6.6055,151.34,151.31,6.6064]
[1745831548425,23.7,151.36,151.28,29.7098]
[1745831549223,6.6051,151.35,151.32,6.6061]
[1745831549824,23.7,151.36,151.34,6.6055]
[1745831550124,499.16,151.39,151.3,18.17262052]
[1745831550424,517.33262052,151.39,151.3,6.6069]
[1745831551527,6.6058,151.34,151.31,6.6067]
[1745831551720,517.33262052,151.39,151.28,29.7098]
[1745831552025,6.6063,151.33,151.3,6.6071]
[1745831552426,6.6063,151.33,151.28,29.7098]
[1745831552626,6.6063,151.33,151.31,6.6067]
[1745831552826,6.6063,151.33,151.28,29.7098]
[1745831553128,6.6063,151.33,151.3,6.6071]
[1745831553425,6.6063,151.33,151.28,29.7098]
[1745831553927,6.6063,151.33,151.3,6.6069]
[1745831555926,6.6065,151.32,151.29,6.6075]
[1745831556128,23.7,151.35,151.28,23.7]
[1745831556530,6.6066,151.32,151.3,6.6072]
[1745831556731,23.7,151.35,151.3,6.6072]
[1745831557035,6.6063,151.33,151.3,6.6072]
[1745831557234,23.7,151.35,151.29,6.6075]
[1745831558237,6.607,151.31,151.28,30.3079]
[1745831559238,23.7,151.35,151.27,6.6084]
[1745831559531,4.0075,151.34,151.25,41.87262052]
[1745831559735,6.6075,151.3,151.25,41.87262052]
[1745831560238,6.607,151.31,151.25,41.87262052]
[1745831560537,6.607,151.31,151.28,6.6079]
[1745831561138,6.6065,151.32,151.25,41.87262052]
[1745831561343,6.6065,151.32,151.26,1.9278]
[1745831561638,6.6065,151.32,151.29,6.6074]
[1745831561838,6.6065,151.32,151.27,11.35068592]
[1745831562539,23.7,151.35,151.27,11.35068592]
[1745831563037,6.6066,151.32,151.29,6.6074]
[1745831567540,23.7,151.35,151.22,2.0711]
[1745831567740,23.7,151.35,151.26,11.35068592]
[1745831568142,6.607,151.31,151.27,6.6083]
[1745831568642,6.6075,151.3,151.26,17.95938592]
[1745831568844,6.6075,151.3,151.26,6.6087]
[1745831569240,11.35068592,151.34,151.25,23.7]
[1745831569842,6.6071,151.31,151.28,6.6079]
[1745831570343,6.6074,151.3,151.27,6.6083]
[1745831570742,11.35068592,151.34,151.25,23.7]
[1745831570937,6.607,151.31,151.28,6.6077]
[1745831571544,6.6073,151.3,151.28,6.6077]
[1745831572444,6.6069,151.31,151.28,6.6077]
[1745831572744,11.35068592,151.34,151.27,6.6083]
[1745831573044,6.6071,151.31,151.25,23.7]
[1745831573243,6.6071,151.31,151.28,6.6079]
[1745831573543,6.6071,151.31,151.25,23.7]
[1745831573745,6.6066,151.32,151.26,11.35068592]
[1745831574044,11.35068592,151.34,151.26,11.35068592]
[1745831574246,6.607,151.31,151.28,6.6078]
[1745831575139,11.35068592,151.36,151.25,23.7]
[1745831575342,34.95068592,151.36,151.28,11.35068592]
[1745831575745,6.606,151.33,151.3,6.607]
[1745831576046,23.6,151.36,151.3,11.35068592]
[1745831576246,30.2047,151.36,151.33,6.6056]
[1745831577345,6.6051,151.35,151.32,6.6061]
[1745831578246,30.2048,151.36,151.33,6.6057]
[1745831579245,6.6051,151.35,151.33,6.6057]
[1745831579846,6.6051,151.35,151.32,6.6061]
[1745831580444,30.2048,151.36,151.33,6.6059]
[1745831581847,6.6051,151.35,151.33,6.6059]
[1745831582345,6.6051,151.35,151.32,6.6061]
[1745831583846,23.58,151.39,151.32,11.35068592]
[1745831584648,23.58,151.39,151.34,11.35068592]
[1745831585146,30.1835,151.39,151.36,6.6043]
[1745831585448,30.1835,151.39,151.34,11.35068592]
[1745831585939,23.58,151.39,151.33,23.58]
[1745831586346,6.6042,151.37,151.33,23.58]
[1745831586848,6.6042,151.37,151.34,6.6052]
[1745831587644,6.6047,151.36,151.33,30.1857]
[1745831587946,11.35068592,151.38,151.33,23.58]
[1745831588140,11.35068592,151.38,151.3,41.05588592]
[1745831588346,6.6055,151.34,151.3,41.05588592]
[1745831588748,6.6055,151.34,151.31,6.6065]
[1745831588949,6.6059,151.33,151.31,6.6065]
[1745831589149,11.35068592,151.36,151.27,23.58]
[1745831589448,6.6066,151.32,151.29,6.6074]
[1745831589648,23.58,151.35,151.27,23.58]
[1745831590041,23.58,151.35,151.28,6.6077]
[1745831590244,6.607,151.31,151.28,6.6077]
[1745831590952,11.35068592,151.34,151.27,30.1883]
[1745831591247,11.35068592,151.34,151.27,23.58]
[1745831591849,6.607,151.31,151.28,6.608]
[1745831593949,6.607,151.31,151.29,6.6076]
[1745831594151,23.58,151.35,151.27,23.58]
[1745831594450,23.58,151.34,151.28,11.35068592]
[1745831594648,23.58,151.34,151.31,6.6067]
[1745831595245,30.1857,151.34,151.3,6.607]
[1745831595449,30.1857,151.34,151.28,11.35068592]
[1745831595650,23.58,151.34,151.28,11.35068592]
[1745831596053,6.6062,151.33,151.28,11.35068592]
[1745831596657,23.58,151.34,151.27,23.58]
[1745831597450,34.93068592,151.34,151.27,23.58]
[1745831597951,6.6066,151.32,151.28,6.6078]
[1745831598553,6.607,151.31,151.28,6.6078]
[1745831599552,34.93068592,151.34,151.27,23.58]
[1745831600150,6.6076,151.3,151.27,6.6083]
[1745831601654,6.6076,151.3,151.26,6.6088]
[1745831601854,6.6076,151.3,151.24,40.99288592]
[1745831602154,6.607,151.31,151.24,40.99288592]
[1745831602352,6.607,151.31,151.28,6.6081]
[1745831605955,6.607,151.31,151.24,40.99288592]
[1745831606452,6.6064,151.32,151.26,11.35068592]
[1745831606753,23.54,151.34,151.28,11.35068592]
[1745831607156,6.6062,151.33,151.3,6.607]
[1745831607356,23.54,151.34,151.3,6.607]
[1745831607556,6.6062,151.33,151.3,6.607]
[1745831608360,6.6062,151.33,151.28,11.35068592]
[1745831609460,6.6064,151.32,151.3,6.6069]
[1745831609861,6.6061,151.33,151.3,6.6069]
[1745831610053,6.6061,151.33,151.31,6.6068]
[1745831610361,13.27038592,151.36,151.28,34.89068592]
[1745831610562,1.9197,151.36,151.28,34.89068592]
[1745831611260,27.4937,151.37,151.3,11.35068592]
[1745831611461,23.54,151.37,151.3,11.35068592]
[1745831611660,6.6048,151.36,151.33,6.6058]
[1745831612062,23.54,151.37,151.33,6.6058]
[1745831612562,6.6047,151.36,151.33,6.6058]
[1745831613062,6.6051,151.35,151.33,6.6058]
[1745831614565,11.35068592,151.4,151.31,11.35068592]
[1745831614865,23.54,151.4,151.32,23.54]
[1745831615260,6.6046,151.37,151.34,6.6052]
[1745831616061,23.54,151.4,151.34,6.6052]
[1745831616062,6.6047,151.36,151.34,6.6052]
[1745831617864,6.6047,151.36,151.33,6.6057]
[1745831618060,6.6047,151.36,151.32,23.54]
[1745831618464,6.6047,151.36,151.33,6.6056]
[1745831618765,6.6052,151.35,151.33,6.6056]
[1745831618962,11.35068592,151.39,151.32,23.54]
[1745831619162,11.35068592,151.39,151.3,3.898]
[1745831619362,11.35068592,151.37,151.3,3.898]
[1745831619664,11.35068592,151.37,151.31,6.6067]
[1745831619866,23.54,151.4,151.29,25.4942]
[1745831620163,11.35068592,151.39,151.29,25.4942]
[1745831620468,6.6057,151.34,151.29,25.4942]
[1745831621163,11.35068592,151.39,151.29,25.4942]
[1745831621566,11.35068592,151.39,151.32,6.6063]
[1745831622163,6.6048,151.36,151.33,6.6057]
[1745831622965,11.35068592,151.39,151.33,6.6057]
[1745831623365,6.6049,151.36,151.33,6.6057]
[1745831624568,6.605,151.35,151.33,6.6057]
[1745831624769,6.605,151.35,151.32,6.6061]
[1745831624966,11.35068592,151.39,151.32,6.6061]
[1745831625166,6.6054,151.35,151.32,6.6061]
[1745831625370,11.35068592,151.37,151.31,6.6066]
[1745831625668,6.6058,151.34,151.31,6.6066]
[1745831625872,11.35068592,151.37,151.31,6.6066]
[1745831626063,23.54,151.4,151.29,25.4942]
[1745831626064,11.35068592,151.35,151.3,6.607]
[1745831627174,11.35068592,151.35,151.29,23.54]
[1745831627375,11.35068592,151.35,151.26,34.89068592]
[1745831627678,6.6068,151.31,151.29,6.6074]
[1745831628673,6.6068,151.31,151.28,6.6079]
[1745831631171,6.6073,151.3,151.27,6.6084]
[1745831631474,6.6073,151.3,151.26,23.54]
[1745831631873,6.6073,151.3,151.27,6.6082]
[1745831633177,6.6073,151.3,151.28,6.6081]
[1745831633378,6.6069,151.31,151.28,6.6081]
[1745831635975,6.6069,151.31,151.29,6.6076]
[1745831636576,11.35068592,151.31,151.23,23.48]
[1745831637776,6.6079,151.29,151.26,6.6089]
[1745831637977,23.48,151.32,151.23,23.48]
[1745831638371,23.48,151.32,151.24,11.35068592]
[1745831638571,6.6074,151.3,151.27,6.6082]
[1745831639176,23.48,151.32,151.26,11.35068592]
[1745831639876,30.0867,151.32,151.26,11.35068592]
[1745831640175,23.48,151.32,151.26,11.35068592]
[1745831640475,6.607,151.31,151.28,6.6078]
[1745831640668,23.48,151.32,151.26,11.35068592]
[1745831640865,30.0866,151.32,151.29,6.6074]
[1745831643178,23.48,151.32,151.26,11.35068592]
[1745831643379,40.65878592,151.35,151.27,23.48]
[1745831643880,6.6066,151.32,151.29,6.6075]
[1745831644377,6.6066,151.32,151.27,23.48]
[1745831644679,17.17878592,151.35,151.27,23.48]
[1745831644877,5.8281,151.35,151.27,29.5225]
[1745831645075,6.6057,151.34,151.31,6.6066]
[1745831645482,17.17878592,151.35,151.3,6.6071]
[1745831645981,17.17878592,151.35,151.29,6.6074]
[1745831646282,11.35068592,151.33,151.29,6.6074]
[1745831646681,6.6064,151.32,151.3,6.6072]
[1745831646878,17.17878592,151.35,151.27,23.48]
[1745831647281,6.6064,151.32,151.3,6.607]
[1745831648674,17.17878592,151.35,151.23,5.8224]
[1745831648882,11.35068592,151.33,151.24,34.83068592]
[1745831649180,6.6075,151.3,151.27,6.6082]
[1745831649582,11.35068592,151.33,151.24,34.83068592]
[1745831649883,6.607,151.31,151.28,6.6078]
[1745831652386,23.48,151.33,151.26,11.35068592]
[1745831652682,23.48,151.36,151.26,11.35068592]
[1745831653084,6.6061,151.33,151.3,6.6069]
[1745831653581,6.6061,151.33,151.28,23.48]
[1745831654382,6.6061,151.33,151.3,6.6068]
[1745831656082,6.6057,151.34,151.31,6.6068]
[1745831656886,6.606,151.33,151.31,6.6068]
[1745831657383,23.48,151.36,151.31,6.6068]
[1745831657585,6.6057,151.34,151.31,6.6068]
[1745831658784,23.48,151.36,151.31,6.6068]
[1745831659384,23.48,151.36,151.3,6.607]
[1745831659586,23.48,151.36,151.28,23.48]
[1745831659881,6.6056,151.34,151.28,23.48]
[1745831660086,23.48,151.36,151.31,6.6066]
[1745831660485,6.6059,151.33,151.31,6.6066]
[1745831665189,6.6063,151.32,151.3,6.607]
[1745831665589,23.48,151.36,151.28,23.48]
[1745831665990,6.6062,151.33,151.3,6.607]
[1745831666796,6.6062,151.33,151.28,23.48]
[1745831667390,6.6062,151.33,151.3,6.6069]
[1745831668291,6.6057,151.34,151.28,23.48]
[1745831668482,11.35068592,151.35,151.28,23.48]
[1745831668790,6.6064,151.32,151.3,6.607]
[1745831668990,11.35068592,151.33,151.28,23.48]
[1745831669393,6.6075,151.3,151.28,23.48]
[1745831669590,6.6075,151.3,151.25,23.3]
[1745831670092,6.6069,151.31,151.28,6.608]
[1745831671094,6.6069,151.31,151.29,6.6076]
[1745831671992,6.6066,151.32,151.29,6.6076]
[1745831672595,6.6068,151.31,151.29,6.6076]
[1745831673997,6.6068,151.31,151.28,6.6079]
[1745831674298,6.6074,151.3,151.25,23.3]
[1745831674503,11.35068592,151.31,151.25,23.3]
[1745831674996,6.608,151.29,151.26,6.6089]
[1745831675597,6.608,151.29,151.27,6.6085]
[1745831676400,4.45384633,151.28,151.27,6.6085]
[1745831682504,4.45384633,151.28,151.26,6.6088]
[1745831682706,6.6079,151.29,151.26,6.6088]
[1745831682901,4.45319783,151.28,151.25,23.3]
[1745831683102,11.35068592,151.31,151.25,23.3]
[1745831683404,11.06098942,151.3,151.27,6.6083]
[1745831683703,4.45348942,151.29,151.27,6.6083]
[1745831683903,4.45348942,151.28,151.27,6.6083]
[1745831687604,6.6064,151.32,151.3,6.6072]
[1745831687807,4.4536288,151.31,151.3,6.6072]
[1745831688101,4.4536288,151.31,151.29,6.6075]
[1745831688305,4.4536288,151.3,151.29,6.6075]
[1745831690707,17.95678592,151.33,151.3,6.6071]
[1745831690902,4.4539169,151.32,151.3,6.6071]
[1745831691104,4.4539169,151.31,151.3,6.6071]
[1745831696409,6.6061,151.33,151.3,6.6071]
[1745831696708,4.4531737,151.32,151.3,6.6071]
[1745831696908,4.4531737,151.31,151.3,6.6071]
[1745831697407,488.8055,151.41,151.3,34.65068592]
[1745831697611,4.45336768,151.37,151.3,34.65068592]
[1745831697811,4.45336768,151.36,151.3,34.65068592]
[1745831698007,4.45336768,151.35,151.34,6.6052]
[1745831698414,4.45336768,151.35,151.3,34.65068592]
[1745831698609,4.45336768,151.34,151.32,6.6061]
[1745831698803,11.35068592,151.37,151.32,6.6061]
[1745831699111,6.6053,151.35,151.32,6.6061]
[1745831699405,4.45232606,151.34,151.32,6.6061]
[1745831699610,6.6053,151.35,151.33,6.6059]
[1745831699810,4.45129084,151.34,151.33,6.6059]
[1745831700215,4.45129084,151.34,151.32,6.6061]
[1745831700413,6.6048,151.36,151.3,23.3]
[1745831700614,4.45120908,151.35,151.3,23.3]
[1745831700912,4.45120908,151.34,151.33,6.6055]
[1745831702816,4.45120908,151.34,151.32,6.6061]
[1745831703114,6.605,151.36,151.32,6.6061]
[1745831703315,4.45031598,151.35,151.32,6.6061]
[1745831703515,4.45031598,151.34,151.32,6.6061]
[1745831703715,6.605,151.35,151.32,6.6061]
[1745831703917,4.44951403,151.34,151.31,6.6066]
[1745831704214,4.44951403,151.33,151.3,23.3]
[1745831704417,4.44951403,151.32,151.3,23.3]
[1745831704618,4.44951403,151.31,151.3,23.3]
[1745831704918,4.44951403,151.31,151.27,23.3]
[1745831705118,6.6065,151.32,151.28,6.6077]
[1745831705317,4.44844854,151.31,151.28,6.6077]
[1745831705618,11.35068592,151.33,151.28,6.6077]
[1745831705819,4.44855457,151.32,151.27,29.9083]
[1745831706010,4.44855457,151.31,151.27,23.3]
[1745831706209,4.44855457,151.3,151.27,23.3]
[1745831706516,4.44855457,151.29,151.24,23.3]
[1745831706719,6.6075,151.3,151.24,23.3]
[1745831706915,4.44679088,151.29,151.24,23.3]
[1745831707119,6.6075,151.3,151.27,6.6083]
[1745831707418,4.4467163,151.29,151.27,6.6083]
[1745831707616,6.6075,151.3,151.27,6.6083]
[1745831707820,6.6075,151.3,151.28,6.6081]
[1745831707821,4.44677784,151.29,151.28,6.6081]
[1745831708021,4.44677784,151.29,151.24,23.3]
[1745831708221,17.95768592,151.31,151.24,23.3]
[1745831708424,4.44654048,151.3,151.24,23.3]
[1745831708623,4.44654048,151.29,151.24,34.65068592]
[1745831708819,11.35068592,151.33,151.29,6.6074]
[1745831709120,4.44659083,151.32,151.24,34.65068592]
[1745831709319,4.44659083,151.31,151.3,6.6072]
[1745831713231,11.35068592,151.35,151.31,6.6064]
[1745831713530,11.05396152,151.34,151.31,6.6064]
[1745831713732,4.44846152,151.33,151.31,6.6064]
[1745831713928,4.44846152,151.32,151.31,6.6064]
[1745831715232,4.44846152,151.32,151.29,6.6073]
[1745831715431,4.44843495,151.31,151.29,6.6073]
[1745831715635,6.6062,151.33,151.28,23.3]
[1745831715824,4.44843512,151.32,151.28,23.3]
[1745831716127,4.44843512,151.31,151.28,23.3]
[1745831716326,6.6062,151.33,151.28,23.3]
[1745831716532,4.44834807,151.32,151.28,23.3]
[1745831716734,4.44834807,151.31,151.28,23.3]
[1745831716935,11.35068592,151.35,151.31,6.6064]
[1745831717136,4.44834807,151.34,151.31,6.6064]
[1745831717432,4.44834807,151.33,151.31,6.6064]
[1745831717634,4.44834807,151.32,151.31,6.6064]
[1745831720839,17.42928592,151.38,151.34,6.6051]
[1745831721042,4.45013191,151.37,151.34,6.6051]
[1745831721335,4.45013191,151.36,151.34,6.6051]
[1745831721534,4.45013191,151.35,151.34,6.6051]
[1745831722439,4.45031667,151.35,151.34,6.6051]
[1745831727444,34.65068592,151.42,151.38,6.6034]
[1745831727637,11.05358993,151.41,151.38,6.6034]
[1745831727938,4.45108993,151.4,151.32,34.65068592]
[1745831728141,4.45108993,151.39,151.32,34.65068592]
[1745831728336,4.45108993,151.38,151.32,34.65068592]
[1745831728632,4.45108993,151.37,151.32,34.65068592]
[1745831728938,34.65068592,151.42,151.38,6.6037]
[1745831729240,4.44977919,151.41,151.38,6.6037]
[1745831729435,4.44977919,151.4,151.37,6.6039]
[1745831729635,4.44977919,151.39,151.37,6.6039]
[1745831729839,4.44977919,151.38,151.37,6.6039]
[1745831731237,4.44762523,151.38,151.37,6.6039]
[1745831733345,4.44762523,151.38,151.36,6.6044]
[1745831733546,6.6038,151.38,151.32,34.65068592]